bitfinex/quotes_ETHUSD_20251028
["timestamp","ask_amount","ask_price","bid_price","bid_amount"]
[1761693026886,0.001,3990.3,3989.9,10.34759035]
[1761693027249,0.001,3990.3,3989.9,9.88579035]
[1761693027651,0.4404,3990.3,3989.9,9.88579035]
[1761693028779,0.001,3990.3,3989.9,3.13240217]
[1761693028965,0.4404,3990.0,3989.9,4.85612847]
[1761693032072,0.4404,3990.0,3989.9,8.68512847]
[1761693033375,0.4404,3990.0,3989.9,6.46012847]
[1761693034785,0.001,3990.0,3989.9,6.46012847]
[1761693037416,0.0949,3991.3,3990.6,3.3806]
[1761693037706,0.001,3991.1,3990.6,3.3806]
[1761693037877,0.001,3991.1,3990.6,3.5054]
[1761693039404,9.66639004,3990.7,3990.6,3.3806]
[1761693040403,8.83220904,3990.7,3990.6,3.3806]
[1761693040703,11.58321104,3990.7,3990.6,3.3806]
[1761693041202,11.08150504,3990.7,3990.6,3.3806]
[1761693041368,10.82195304,3990.7,3990.6,3.3806]
[1761693041570,17.82309004,3990.7,3990.6,3.3806]
[1761693042099,19.37829004,3990.7,3990.6,3.3806]
[1761693042713,19.63417104,3990.7,3990.6,3.3806]
[1761693042868,19.38023104,3990.7,3990.6,3.3806]
[1761693043289,15.47448204,3990.7,3990.6,3.3806]
[1761693043799,13.47478304,3990.7,3990.6,3.3806]
[1761693044004,11.36005504,3990.7,3990.6,3.3806]
[1761693044180,8.68010704,3990.7,3990.6,3.3806]
[1761693044567,9.68151204,3990.7,3990.6,3.3806]
[1761693044773,3.7846,3990.7,3990.6,3.3806]
[1761693047406,14.82045804,3990.7,3990.6,3.3806]
[1761693050087,14.82045804,3990.7,3990.2,0.1248]
[1761693050088,3.7846,3990.7,3990.2,0.1248]
[1761693050419,0.0044,3990.6,3990.2,0.1248]
[1761693050785,0.0044,3990.6,3990.2,2.6309378]
[1761693050986,0.0044,3990.6,3990.3,2.50606527]
[1761693052219,0.0044,3990.6,3990.2,2.630922]
[1761693053899,3.7802,3990.7,3990.2,2.630922]
[1761693054096,0.0044,3990.5,3990.2,2.630922]
[1761693056015,3.7802,3990.7,3990.2,2.630922]
[1761693056216,0.0044,3990.6,3990.2,2.630922]
[1761693057319,0.0044,3990.6,3990.2,0.1248]
[1761693057522,30.0,3990.5,3990.2,0.1248]
[1761693057820,30.0,3990.5,3989.9,0.1268]
[1761693057821,2.50609854,3990.3,3989.9,0.1268]
[1761693057981,2.224,3990.2,3989.9,0.1268]
[1761693058187,2.2284,3990.2,3989.9,0.1268]
[1761693058383,0.0044,3990.1,3989.9,0.1268]
[1761693059990,2.224,3990.2,3989.9,2.63311281]
[1761693060186,2.224,3990.2,3990.0,2.50621216]
[1761693060426,2.224,3990.2,3989.9,0.1268]
[1761693061220,0.0044,3990.1,3989.9,0.1268]
[1761693061421,16.68772166,3990.0,3989.9,0.002]
[1761693061627,13.96694866,3990.0,3989.9,0.002]
[1761693061824,11.92143966,3990.0,3989.9,0.002]
[1761693062226,17.35018015,3990.0,3989.9,0.002]
[1761693062539,24.59904415,3990.0,3989.9,0.002]
[1761693063397,28.76910915,3990.0,3989.9,0.002]
[1761693063596,27.83321615,3990.0,3989.9,0.002]
[1761693064624,34.07935115,3990.0,3989.9,0.002]
[1761693064927,33.80746315,3990.0,3989.9,0.002]
[1761693065543,39.90011015,3990.0,3989.9,0.002]
[1761693067310,43.90011015,3990.0,3989.9,0.002]
[1761693069520,44.00052297,3990.0,3989.9,0.002]
[1761693071227,26.91733648,3990.0,3989.9,0.002]
[1761693071742,36.79578248,3990.0,3989.9,0.002]
[1761693073175,40.79578248,3990.0,3989.9,0.002]
[1761693073821,46.22452297,3990.0,3989.9,0.002]
[1761693074548,16.22452297,3990.0,3989.9,0.002]
[1761693074735,46.22452297,3990.0,3989.9,0.002]
[1761693075634,43.62355497,3990.0,3989.9,0.002]
[1761693076030,26.82371848,3990.0,3989.9,0.002]
[1761693076436,23.58524948,3990.0,3989.9,0.002]
[1761693076635,29.05664648,3990.0,3989.9,0.002]
[1761693076836,28.79132448,3990.0,3989.9,0.002]
[1761693077624,40.79578248,3990.0,3989.9,0.002]
[1761693078238,40.43138248,3990.0,3989.9,0.002]
[1761693078634,10.79578248,3990.0,3989.9,0.002]
[1761693078840,39.97660848,3990.0,3989.9,0.002]
[1761693079637,10.79578248,3990.0,3989.9,0.002]
[1761693079841,30.52085848,3990.0,3989.9,0.002]
[1761693080764,40.79578248,3990.0,3989.9,0.002]
[1761693081557,32.06192648,3990.0,3989.9,0.002]
[1761693081861,40.79578248,3990.0,3989.9,0.002]
[1761693085160,33.79953348,3990.0,3989.9,0.002]
[1761693085368,31.42446548,3990.0,3989.9,0.002]
[1761693085563,30.99038948,3990.0,3989.9,0.002]
[1761693086066,40.79578248,3990.0,3989.9,0.002]
[1761693086861,43.43778248,3990.0,3989.9,0.002]
[1761693087167,40.79578248,3990.0,3989.9,0.002]
[1761693092771,38.10082448,3990.0,3989.9,0.002]
[1761693092949,19.34563766,3990.0,3989.9,0.002]
[1761693093144,19.34563766,3990.0,3989.9,0.4379]
[1761693093357,19.34563766,3990.0,3989.9,0.002]
[1761693093563,15.75114166,3990.0,3989.9,0.002]
[1761693093959,20.10107966,3990.0,3989.9,0.002]
[1761693095154,20.10670566,3990.0,3989.9,0.002]
[1761693096159,30.71467666,3990.0,3989.9,0.002]
[1761693096354,25.35313266,3990.0,3989.9,0.002]
[1761693097189,25.92713666,3990.0,3989.9,0.002]
[1761693097887,9.34481566,3990.0,3989.9,0.002]
[1761693098082,14.02682766,3990.0,3989.9,0.4379]
[1761693098280,13.52509566,3990.0,3989.9,0.4379]
[1761693098481,11.50309466,3990.0,3989.9,0.4379]
[1761693099082,16.44118666,3990.0,3989.9,0.4379]
[1761693099277,14.30006766,3990.0,3989.9,0.4379]
[1761693099482,12.43337466,3990.0,3989.9,0.4379]
[1761693099706,11.56181066,3990.0,3989.9,0.4379]
[1761693100171,13.31599066,3990.0,3989.9,0.4379]
[1761693100371,12.31065466,3990.0,3989.9,0.4379]
[1761693100773,11.03910666,3990.0,3989.9,0.4379]
[1761693100957,11.03910666,3990.0,3989.9,0.002]
[1761693101157,27.06390466,3990.0,3989.9,0.002]
[1761693101360,27.06830466,3990.0,3989.9,0.002]
[1761693101561,27.81693277,3990.0,3989.9,0.002]
[1761693101796,27.06390466,3990.0,3989.9,0.002]
[1761693102186,29.16757466,3990.0,3989.9,0.002]
[1761693102563,13.66895266,3990.0,3989.9,0.002]
[1761693103097,9.09095766,3990.0,3989.9,0.447]
[1761693103276,11.15336866,3990.0,3989.9,0.447]
[1761693103476,10.91635366,3990.0,3989.9,0.447]
[1761693104266,17.27469766,3990.0,3989.9,0.447]
[1761693104596,17.04173366,3990.0,3989.9,0.447]
[1761693105188,17.04173366,3990.0,3989.9,0.002]
[1761693105507,33.42719766,3990.0,3989.9,0.002]
[1761693106425,36.68996966,3990.0,3989.9,0.002]
[1761693106702,33.68953666,3990.0,3989.9,0.002]
[1761693107197,33.41336466,3990.0,3989.9,0.002]
[1761693107392,6.68996966,3990.0,3989.9,0.002]
[1761693107600,33.26031566,3990.0,3989.9,0.002]
[1761693108503,34.00169066,3990.0,3989.9,0.002]
[1761693108708,33.76041566,3990.0,3989.9,0.002]
[1761693109405,27.81880166,3990.0,3989.9,0.002]
[1761693109593,28.32586466,3990.0,3989.9,0.002]
[1761693109917,24.29163466,3990.0,3989.9,0.002]
[1761693110116,23.71618066,3990.0,3989.9,0.002]
[1761693110332,23.71178066,3990.0,3989.9,0.002]
[1761693110492,36.68996966,3990.0,3989.9,0.002]
[1761693111526,28.63051866,3990.0,3989.9,0.002]
[1761693111732,25.19977166,3990.0,3989.9,0.002]
[1761693112528,32.79350466,3990.0,3989.9,0.002]
[1761693112738,29.22985566,3990.0,3989.9,0.002]
[1761693113694,30.42764966,3990.0,3989.9,0.002]
[1761693114719,28.59151066,3990.0,3989.9,0.002]
[1761693115034,23.19459066,3990.0,3989.9,0.002]
[1761693115593,6.69436966,3990.0,3989.9,0.002]
[1761693115810,27.11610466,3990.0,3989.9,0.002]
[1761693115990,27.11170466,3990.0,3989.9,0.002]
[1761693116217,24.31170466,3990.0,3989.9,0.002]
[1761693116804,31.90069366,3990.0,3989.9,0.002]
[1761693117005,21.97443866,3990.0,3989.9,0.002]
[1761693117729,35.01244666,3990.0,3989.9,0.002]
[1761693118138,33.25490866,3990.0,3989.9,0.002]
[1761693118436,29.71918166,3990.0,3989.9,0.002]
[1761693119328,25.02300766,3990.0,3989.9,0.002]
[1761693119496,21.55020766,3990.0,3989.9,0.002]
[1761693119831,21.89442366,3990.0,3989.9,0.002]
[1761693120434,21.89882366,3990.0,3989.9,0.002]
[1761693120727,37.44738643,3990.0,3989.9,0.002]
[1761693121731,41.44738643,3990.0,3989.9,0.002]
[1761693121944,41.44298643,3990.0,3989.9,0.002]
[1761693122248,41.44738643,3990.0,3989.9,0.002]
[1761693127679,41.44738643,3990.0,3989.1,0.007]
[1761693127680,4.46822656,3988.0,3987.7,0.0206288]
[1761693127974,2.508408,3986.6,3985.3,2.50915905]
[1761693128266,2.5086206,3986.3,3985.3,2.50915973]
[1761693128469,2.224,3986.2,3985.4,4.52712772]
[1761693128651,2.224,3986.6,3986.0,7.03589149]
[1761693128823,0.93499218,3986.6,3986.1,0.70358915]
[1761693129519,0.93499218,3986.6,3986.1,3.21229817]
[1761693129754,0.93499218,3986.6,3986.1,0.70358915]
[1761693129940,0.93499218,3986.6,3986.2,2.83655485]
[1761693130140,0.93499218,3986.6,3986.4,2.50852229]
[1761693130355,0.93499218,3986.6,3986.5,0.86240771]
[1761693130556,0.93499218,3986.6,3986.5,3.37087378]
[1761693131249,2.225,3986.9,3986.6,2.50840315]
[1761693131480,0.005,3987.4,3986.9,2.5082144]
[1761693131650,2.225,3987.3,3987.0,0.29307144]
[1761693131852,2.225,3987.3,3987.0,0.62097144]
[1761693132368,2.225,3987.3,3987.1,0.3279]
[1761693132874,0.005,3987.4,3987.2,2.50801048]
[1761693133076,0.005,3987.4,3987.3,2.50796278]
[1761693133245,0.005,3987.4,3987.3,6.4522699]
[1761693133574,0.005,3987.4,3987.3,6.7801699]
[1761693133739,0.005,3987.4,3987.3,4.27220712]
[1761693134242,0.005,3987.4,3987.3,6.7801699]
[1761693137288,0.005,3987.4,3987.3,7.92669762]
[1761693137471,0.005,3987.4,3987.3,3.3995699]
[1761693137655,0.005,3987.4,3987.3,3.5243699]
[1761693138553,0.005,3987.4,3987.3,5.7493699]
[1761693139285,0.005,3987.4,3987.3,3.5243699]
[1761693139791,0.005,3987.4,3987.3,5.6235699]
[1761693142052,0.005,3987.4,3987.3,6.37775493]
[1761693142880,0.005,3988.4,3987.3,6.37775493]
[1761693142881,0.005,3988.4,3988.1,2.50742097]
[1761693143091,0.005,3988.4,3988.3,0.1167]
[1761693143492,0.005,3988.4,3988.3,0.4446]
[1761693144299,0.005,3988.4,3988.3,0.1167]
[1761693147884,0.005,3988.4,3988.3,2.62403395]
[1761693148085,0.005,3988.4,3988.3,2.95193395]
[1761693148314,0.005,3988.4,3988.3,3.57318351]
[1761693149516,0.005,3988.4,3988.3,4.32625321]
[1761693149819,0.005,3988.4,3988.3,4.45105321]
[1761693151410,0.006,3988.4,3988.3,4.45105321]
[1761693153886,0.006,3988.4,3988.3,4.12315321]
[1761693158328,0.006,3988.4,3988.3,4.45105321]
[1761693159694,0.001,3989.2,3988.3,4.45105321]
[1761693159695,0.001,3989.2,3989.1,2.50683111]
[1761693160037,0.001,3989.2,3989.1,5.99213111]
[1761693160237,0.001,3989.2,3989.1,3.4853]
[1761693160534,0.001,3989.2,3989.1,6.24173111]
[1761693161098,0.001,3989.2,3989.1,3.7349]
[1761693161311,0.001,3989.2,3989.1,6.24173111]
[1761693161698,0.001,3989.2,3989.1,7.8243077]
[1761693162502,0.001,3989.2,3989.1,7.7076077]
[1761693162917,0.001,3989.2,3989.1,7.8243077]
[1761693163118,0.001,3989.2,3989.1,5.20077659]
[1761693163434,0.001,3989.2,3989.1,3.6182]
[1761693167261,0.001,3989.2,3989.1,6.12503111]
[1761693169218,0.001,3989.2,3989.1,6.56963111]
[1761693170944,0.001,3989.2,3989.1,8.79163111]
[1761693173236,0.001,3989.2,3989.1,10.85402428]
[1761693173433,0.001,3989.2,3989.1,12.19012102]
[1761693182055,0.001,3989.2,3989.1,12.06532102]
[1761693185883,0.001,3989.2,3989.1,11.73742102]
[1761693186883,0.4685,3989.9,3989.1,11.73742102]
[1761693186884,0.4685,3989.9,3989.6,5.86808713]
[1761693187055,0.4685,3989.9,3989.8,0.1248]
[1761693192790,0.4685,3989.9,3989.8,3.4864]
[1761693197593,5.19582847,3989.9,3989.8,3.3616]
[1761693197767,13.78213347,3989.9,3989.8,3.3616]
[1761693198689,16.38319947,3989.9,3989.8,3.3616]
[1761693198893,18.10058747,3989.9,3989.8,3.3616]
[1761693199874,21.50599947,3989.9,3989.8,3.3616]
[1761693201027,30.78107964,3989.9,3989.8,3.3616]
[1761693201226,0.405504,3989.6,3988.8,0.002]
[1761693201374,0.236,3988.9,3988.8,0.002]
[1761693201801,0.678,3988.9,3988.8,0.002]
[1761693203671,14.5411348,3988.9,3988.8,0.002]
[1761693203889,11.1191728,3988.9,3988.8,0.002]
[1761693205079,6.6044988,3988.9,3988.8,0.002]
[1761693207312,6.6044988,3988.9,3988.8,3.3636]
[1761693210313,4.097542,3988.9,3988.8,3.3636]
[1761693210821,3.655542,3988.9,3988.8,3.3636]
[1761693211112,4.097542,3988.9,3988.8,3.3636]
[1761693212490,0.1248,3989.1,3988.8,3.3636]
[1761693212691,0.1248,3989.1,3988.9,0.33636]
[1761693212912,0.1248,3989.1,3988.8,3.3636]
[1761693213418,0.5668,3989.1,3988.9,3.3616]
[1761693217830,0.1248,3989.1,3988.9,3.3616]
[1761693218033,2.221,3989.3,3988.9,3.3616]
[1761693218233,2.663,3989.3,3988.9,3.3616]
[1761693218430,0.442,3989.2,3988.9,3.3616]
[1761693219248,1.9972,3989.2,3989.0,3.3616]
[1761693219635,0.442,3989.1,3989.0,3.3616]
[1761693222245,2.94883111,3989.1,3989.0,3.3616]
[1761693222415,3.47913511,3989.1,3989.0,3.3616]
[1761693222615,7.89597011,3989.1,3989.0,3.3616]
[1761693223438,10.59163011,3989.1,3989.0,3.3616]
[1761693223841,8.37537311,3989.1,3989.0,3.3616]
[1761693224448,3.47913511,3989.1,3989.0,3.3616]
[1761693224618,11.71319911,3989.1,3989.0,3.3616]
[1761693225450,12.90671611,3989.1,3989.0,3.3616]
[1761693226154,11.96163511,3989.1,3989.0,3.3616]
[1761693226530,13.46513511,3989.1,3989.0,3.3616]
[1761693227547,17.32949011,3989.1,3989.0,3.3616]
[1761693228139,16.32949011,3989.1,3989.0,3.3616]
[1761693228452,3.47913511,3989.1,3989.0,3.3616]
[1761693228621,20.31482811,3989.1,3989.0,3.3616]
[1761693228958,19.31747611,3989.1,3989.0,3.3616]
[1761693229558,21.50490011,3989.1,3989.0,3.3616]
[1761693229768,13.52391511,3989.1,3989.0,3.3616]
[1761693230069,13.27839711,3989.1,3989.0,3.3616]
[1761693230486,3.47913511,3989.1,3989.0,3.3616]
[1761693230693,11.52348911,3989.1,3989.0,3.3616]
[1761693231482,3.47913511,3989.1,3989.0,3.3616]
[1761693231695,0.972304,3989.1,3989.0,3.3616]
[1761693232490,3.47913511,3989.1,3989.0,3.3616]
[1761693232989,5.57965511,3989.1,3989.0,3.3616]
[1761693233195,3.47913511,3989.1,3989.0,3.3616]
[1761693233378,5.58021911,3989.1,3989.0,3.3616]
[1761693233577,5.57893811,3989.1,3989.0,3.3616]
[1761693233952,3.47913511,3989.1,3989.0,3.3616]
[1761693237025,3.03713511,3989.1,3989.0,3.3616]
[1761693237541,3.47053511,3989.1,3989.0,3.3616]
[1761693237742,0.963704,3989.1,3989.0,3.3616]
[1761693238555,3.47053511,3989.1,3989.0,3.3616]
[1761693239459,0.1248,3989.1,3989.0,3.3616]
[1761693239756,0.5582,3989.1,3989.0,3.3616]
[1761693240150,3.06503111,3989.1,3989.0,3.3616]
[1761693242059,28.45423111,3989.1,3989.0,3.3616]
[1761693242358,7.94823811,3989.1,3989.0,3.3616]
[1761693242564,2.91239795,3989.0,3988.9,3.3636]
[1761693242733,22.58886195,3989.0,3988.9,3.3636]
[1761693242945,27.11688123,3989.0,3988.9,3.3636]
[1761693243121,41.26169223,3989.0,3988.9,3.3636]
[1761693243321,37.69220523,3989.0,3988.9,3.3636]
[1761693243634,10.448718,3989.0,3988.9,3.3636]
[1761693243838,6.68759795,3989.0,3988.9,3.3636]
[1761693245676,8.74934395,3989.0,3988.9,3.3636]
[1761693246272,6.68759795,3989.0,3988.9,3.3636]
[1761693248235,3.7752,3989.0,3988.9,3.3636]
[1761693250637,0.1248,3989.4,3988.9,3.95107241]
[1761693250771,0.001,3989.6,3989.1,2.50683111]
[1761693250970,0.001,3989.6,3989.2,2.50675502]
[1761693251402,0.001,3989.6,3989.2,2.83465502]
[1761693252405,0.001,3989.6,3989.4,2.50664114]
[1761693252699,0.001,3989.6,3989.4,3.46894829]
[1761693252915,0.001,3989.6,3989.4,1.29020715]
[1761693253474,0.001,3989.6,3989.4,0.1248]
[1761693257289,0.001,3989.6,3989.5,3.3616]
[1761693265025,0.001,3989.6,3989.4,0.1248]
[1761693265186,1.5562,3989.6,3989.4,0.1248]
[1761693265716,0.001,3989.6,3989.4,0.1248]
[1761693267607,0.4607,3989.6,3989.4,0.1248]
[1761693267802,0.4607,3989.6,3989.0,0.1167]
[1761693267803,0.406504,3989.6,3989.0,0.1248]
[1761693268008,2.50671457,3989.3,3988.9,0.002]
[1761693268323,4.72571457,3989.3,3988.9,0.002]
[1761693268523,0.4597,3989.2,3988.9,0.002]
[1761693279035,1.5552,3989.2,3988.9,0.002]
[1761693279238,0.4597,3989.1,3988.9,0.002]
[1761693280477,2.6582,3989.0,3988.9,0.002]
[1761693280776,2.219,3989.0,3988.9,0.002]
[1761693281579,5.16509395,3989.0,3988.9,3.3636]
[1761693281996,13.94845895,3989.0,3988.9,3.3636]
[1761693282843,4.680528,3989.0,3988.9,3.3636]
[1761693283580,7.18742195,3989.0,3988.9,3.3636]
[1761693283781,5.16509395,3989.0,3988.9,3.3636]
[1761693283976,9.08983095,3989.0,3988.9,3.3636]
[1761693284183,8.83892795,3989.0,3988.9,3.3636]
[1761693284354,8.54088695,3989.0,3988.9,3.3636]
[1761693284789,8.55041495,3989.0,3988.9,3.3636]
[1761693284989,8.29951195,3989.0,3988.9,3.3636]
[1761693285194,5.792618,3989.0,3988.9,3.3636]
[1761693285864,5.610631,3989.0,3988.9,3.3636]
[1761693286062,4.257653,3989.0,3988.9,3.3636]
[1761693286363,8.75454695,3989.0,3988.9,1.59578179]
[1761693286546,8.75454695,3989.0,3985.4,2.50914543]
[1761693286547,2.91296369,3988.1,3985.4,2.50914543]
[1761693286746,4.46854099,3987.5,3985.4,0.1111]
[1761693286988,4.46872968,3987.2,3985.4,0.1111]
[1761693287206,41.21974896,3987.2,3985.5,0.4634]
[1761693287380,41.65894896,3987.2,3985.5,2.50903938]
[1761693287579,41.65894896,3987.2,3985.7,0.4634]
[1761693288380,33.20065768,3987.2,3985.4,0.1111]
[1761693288584,36.80243796,3987.2,3985.9,0.4634]
[1761693289005,45.65894896,3987.2,3985.9,0.4634]
[1761693289369,45.24670396,3987.2,3985.9,0.4634]
[1761693290088,45.65894896,3987.2,3985.9,0.4634]
[1761693290683,17.38285268,3987.2,3986.2,0.1417]
[1761693290882,24.57507196,3987.2,3986.3,0.4634]
[1761693291106,41.75440196,3987.2,3986.3,0.4634]
[1761693292077,39.61527496,3987.2,3986.3,0.4634]
[1761693293106,42.40615096,3987.2,3986.3,0.4634]
[1761693293287,37.87813168,3987.2,3986.3,0.4634]
[1761693293476,36.53126568,3987.2,3986.3,0.4634]
[1761693293901,5.297243,3987.8,3987.1,0.2211]
[1761693294087,2.226,3987.7,3987.2,0.4634]
[1761693294577,2.226,3987.7,3987.3,2.50796278]
[1761693294782,2.226,3987.7,3987.4,1.03345265]
[1761693295199,2.226,3987.7,3987.5,0.4634]
[1761693296776,2.227,3987.7,3987.5,0.4634]
[1761693297884,0.001,3987.7,3987.5,0.4634]
[1761693298085,0.001,3987.7,3987.4,2.50789153]
[1761693298281,0.001,3987.7,3987.5,0.77300915]
[1761693300221,0.001,3987.7,3987.5,0.30960915]
[1761693300421,0.001,3987.7,3987.2,0.1248]
[1761693300422,2.50871685,3987.7,3987.2,0.1248]
[1761693300597,0.001,3987.7,3987.2,0.1248]
[1761693300784,0.001,3987.7,3987.2,0.5882]
[1761693301119,0.001,3987.7,3987.2,3.09619379]
[1761693301323,0.001,3987.7,3987.6,2.63257409]
[1761693301617,0.001,3987.7,3987.6,3.09597409]
[1761693302910,0.001,3987.7,3987.6,6.93597409]
[1761693303101,0.001,3987.7,3987.1,0.2231]
[1761693303309,0.001,3987.7,3987.2,0.1248]
[1761693305618,0.4402,3987.7,3987.2,0.1248]
[1761693306231,3.245787,3987.6,3987.2,0.1248]
[1761693306802,15.71962568,3987.2,3987.1,0.007]
[1761693307007,13.85263168,3987.2,3987.1,0.007]
[1761693307207,14.29183168,3987.2,3987.1,0.007]
[1761693307803,22.33878668,3987.2,3987.1,0.007]
[1761693308024,11.77574768,3987.2,3987.1,0.007]
[1761693308216,3.35272968,3987.2,3987.1,0.007]
[1761693308520,10.06364568,3987.2,3987.1,0.007]
[1761693308708,9.32981168,3987.2,3987.1,0.007]
[1761693308910,7.03330268,3987.2,3987.1,0.007]
[1761693309746,5.94567968,3987.2,3987.1,0.007]
[1761693309947,5.89548168,3987.2,3987.1,0.007]
[1761693310656,0.405504,3987.2,3987.1,0.007]
[1761693310864,6.711107,3987.6,3987.1,0.007]
[1761693311062,2.229,3987.5,3987.1,0.2214]
[1761693311372,2.229,3987.5,3987.1,0.6885]
[1761693312927,2.229,3987.5,3987.2,0.4671]
[1761693314169,2.50871468,3987.7,3987.3,2.50796278]
[1761693314170,0.001,3987.7,3987.3,2.50796278]
[1761693314384,0.001,3987.7,3987.6,2.50777409]
[1761693314731,0.001,3987.7,3987.6,2.97487409]
[1761693316780,0.001,3987.7,3987.6,3.09967409]
[1761693316962,0.001,3987.7,3987.6,3.88343149]
[1761693324184,0.001,3987.7,3987.6,3.983837]
[1761693325681,0.001,3987.7,3987.6,5.539037]
[1761693334283,0.001,3987.7,3987.6,3.516737]
[1761693334507,0.001,3987.7,3987.6,4.73377409]
[1761693335581,0.001,3987.7,3987.6,5.20087409]
[1761693339721,0.001,3987.7,3987.6,9.04087409]
[1761693343808,0.001,3987.7,3987.6,17.04607409]
[1761693344393,0.001,3987.7,3987.6,17.17087409]
[1761693344700,0.001,3987.7,3987.6,19.65155578]
[1761693345813,0.001,3987.7,3987.6,19.75194818]
[1761693352842,0.001,3987.7,3987.6,19.28484818]
[1761693353048,0.001,3987.7,3987.6,19.71684818]
[1761693353505,0.001,3987.7,3987.6,28.77104318]
[1761693353706,0.001,3987.7,3987.6,21.58594568]
[1761693353907,0.001,3988.5,3988.0,4.06272256]
[1761693354140,0.001,3988.5,3988.0,10.78175488]
[1761693354544,0.4343,3988.1,3988.0,10.78175488]
[1761693357250,0.4343,3988.1,3988.0,9.22655488]
[1761693360260,0.4343,3988.1,3988.0,3.839]
[1761693360954,0.4343,3988.1,3987.4,3.839]
[1761693360955,2.50756476,3988.0,3987.4,3.839]
[1761693361118,0.4343,3988.1,3987.4,3.839]
[1761693361119,0.2142,3987.9,3987.5,2.50779086]
[1761693361451,0.2142,3987.9,3987.8,2.50764832]
[1761693362227,0.6475,3987.9,3987.8,2.50764832]
[1761693362974,0.6475,3987.9,3987.6,2.223]
[1761693363121,0.4333,3987.8,3987.6,2.50775596]
[1761693363516,0.4333,3987.8,3987.4,3.839]
[1761693363742,0.4333,3987.8,3987.4,6.34688087]
[1761693363969,0.4333,3987.8,3987.6,0.1248]
[1761693365663,0.4333,3987.8,3987.7,3.839]
[1761693370554,0.2152,3987.9,3987.7,3.839]
[1761693370757,0.2152,3987.9,3987.8,2.5327248]
[1761693370758,0.001,3987.9,3987.8,2.5327248]
[1761693371002,0.001,3987.9,3987.8,4.10805358]
[1761693371559,0.001,3987.9,3987.8,7.94705358]
[1761693371755,0.001,3987.9,3987.8,7.9219771]
[1761693373375,0.001,3987.9,3987.8,8.0467771]
[1761693374264,0.001,3987.9,3987.8,8.4824771]
[1761693374459,0.001,3987.9,3987.8,10.0376771]
[1761693378020,0.001,3988.1,3988.0,2.50752256]
[1761693378309,0.001,3988.1,3988.0,9.25762006]
[1761693378616,0.001,3988.1,3988.0,9.69332006]
[1761693381786,0.001,3988.1,3988.0,19.98232006]
[1761693382122,0.001,3988.1,3988.0,20.08270314]
[1761693382307,0.001,3988.1,3988.0,22.56338483]
[1761693386032,0.001,3988.9,3988.6,13.11654036]
[1761693386203,0.001,3988.9,3988.8,2.50701965]
[1761693386390,0.001,3988.9,3988.8,4.06221965]
[1761693386591,0.001,3988.9,3988.8,6.32594565]
[1761693387928,0.001,3988.9,3988.8,6.45074565]
[1761693388332,0.4553,3989.9,3988.8,6.45074565]
[1761693388333,0.001,3989.9,3989.5,2.50657977]
[1761693388493,0.001,3989.9,3989.5,6.30784556]
[1761693388837,0.001,3989.9,3989.5,6.71847977]
[1761693389132,0.001,3989.9,3989.5,8.54641779]
[1761693389433,1e-08,3990.4,3990.3,2.64777723]
[1761693389731,0.001,3990.6,3990.5,2.50595163]
[1761693390131,0.001,3990.6,3990.5,2.53101114]
[1761693390328,0.001,3990.6,3990.5,4.28986022]
[1761693390896,0.001,3990.6,3990.5,2.50595163]
[1761693391232,0.001,3990.6,3990.0,1.5552]
[1761693391233,0.4509,3990.6,3990.0,2.223]
[1761693391434,0.4509,3990.6,3990.2,4.5270975]
[1761693391637,0.4509,3990.6,3990.5,7.03304913]
[1761693395724,0.4509,3990.6,3990.5,2.50595163]
[1761693397128,0.4509,3990.6,3990.1,4.5270975]
[1761693397465,0.4509,3990.6,3990.5,2.50595163]
[1761693397764,0.4509,3990.6,3990.5,4.72895163]
[1761693398337,0.4509,3990.6,3990.5,4.85375163]
[1761693410992,0.001,3990.6,3990.5,4.85375163]
[1761693411558,0.001,3990.6,3990.5,9.40590864]
[1761693411856,0.001,3990.6,3990.5,9.38084913]
[1761693412484,0.001,3990.6,3990.5,10.89314017]
[1761693415361,0.001,3990.6,3990.5,11.79096772]
[1761693415565,0.001,3991.0,3990.9,6.34170046]
[1761693415800,0.001,3991.0,3990.9,13.98662551]
[1761693417906,0.001,3991.0,3990.9,15.99002551]
[1761693418107,0.001,3991.0,3990.9,18.4707072]
[1761693418576,0.001,3991.0,3990.9,24.9207072]
[1761693420277,0.001,3991.0,3990.9,24.4725072]
[1761693421001,0.001,3991.0,3990.9,24.9207072]
[1761693421169,0.001,3991.0,3990.9,22.7007072]
[1761693421373,0.001,3991.0,3990.9,24.9197072]
[1761693422381,0.001,3991.0,3990.9,25.0445072]
[1761693423420,0.001,3991.0,3990.9,25.2664072]
[1761693424217,0.006,3991.4,3991.3,7.89564935]
[1761693424418,0.006,3991.4,3991.3,3.835]
[1761693424618,0.006,3991.4,3991.3,8.55944935]
[1761693424819,0.006,3991.4,3991.3,8.68424935]
[1761693424985,0.434,3991.4,3991.3,8.68424935]
[1761693431898,0.006,3991.4,3991.3,15.6643744]
[1761693432102,0.006,3991.4,3991.3,17.95400918]
[1761693432320,0.006,3991.4,3991.3,17.49290918]
[1761693438246,0.006,3991.4,3991.3,18.41160918]
[1761693438630,0.001,3991.8,3991.7,2.50519828]
[1761693438942,0.001,3991.8,3991.7,10.67522277]
[1761693439144,0.001,3991.8,3991.7,12.20537079]
[1761693439346,0.001,3991.8,3991.7,12.33017079]
[1761693439846,0.001,3991.8,3991.7,12.79127079]
[1761693440148,0.001,3992.2,3992.1,2.50494727]
[1761693440347,0.001,3992.2,3992.1,14.86726958]
[1761693440645,0.001,3992.2,3992.1,16.54726958]